bitfinex/quotes_ETHUSD_20251021
["timestamp","ask_amount","ask_price","bid_price","bid_amount"]
[1761037154065,37.70171961,3876.1,3876.0,0.002]
[1761037154467,37.16079761,3876.1,3876.0,0.002]
[1761037155077,37.13412161,3876.1,3876.0,0.002]
[1761037156003,19.60218261,3876.1,3876.0,0.002]
[1761037156206,37.38629661,3876.1,3876.0,0.002]
[1761037156374,37.18301761,3876.1,3876.0,0.002]
[1761037157006,19.60218261,3876.1,3876.0,0.002]
[1761037157311,30.61255661,3876.1,3876.0,0.002]
[1761037157673,30.58905661,3876.1,3876.0,0.002]
[1761037158193,40.00313461,3876.1,3876.0,0.002]
[1761037158394,37.76514061,3876.1,3876.0,0.002]
[1761037159098,37.82358461,3876.1,3876.0,0.002]
[1761037160195,41.58342361,3876.1,3876.0,0.002]
[1761037160408,37.58246461,3876.1,3876.0,0.002]
[1761037160720,37.07073361,3876.1,3876.0,0.002]
[1761037161086,19.57868261,3876.1,3876.0,0.002]
[1761037161287,39.77413561,3876.1,3876.0,0.002]
[1761037162409,39.77811261,3876.1,3876.0,0.002]
[1761037163211,19.57868261,3876.1,3876.0,0.002]
[1761037163378,37.48864061,3876.1,3876.0,0.002]
[1761037164309,22.0769917,3876.1,3876.0,0.002]
[1761037164494,20.4457797,3876.1,3876.0,0.002]
[1761037164820,23.59863261,3876.1,3876.0,0.002]
[1761037165016,17.8361977,3876.1,3876.0,0.002]
[1761037165519,18.5419537,3876.1,3876.0,0.4585]
[1761037166302,18.5419537,3876.1,3876.0,0.002]
[1761037166303,20.2836087,3876.1,3876.0,0.002]
[1761037167313,22.2627277,3876.1,3876.0,0.002]
[1761037168032,10.0703477,3876.1,3876.0,0.4585]
[1761037168201,13.3753477,3876.1,3876.0,0.4585]
[1761037168995,20.2632567,3876.1,3876.0,0.4585]
[1761037170795,20.2639607,3876.1,3876.0,0.4585]
[1761037171016,13.3753477,3876.1,3876.0,0.4585]
[1761037171215,21.9071527,3876.1,3876.0,0.002]
[1761037171418,18.9174267,3876.1,3876.0,0.002]
[1761037172025,13.3753477,3876.1,3876.0,0.002]
[1761037172230,22.5484577,3876.1,3876.0,0.002]
[1761037172626,15.8985687,3876.1,3876.0,0.4409]
[1761037173209,16.6972557,3876.1,3876.0,0.4409]
[1761037173739,19.7065227,3876.1,3876.0,0.4409]
[1761037174121,13.3753477,3876.1,3876.0,0.4409]
[1761037174316,19.6548147,3876.1,3876.0,0.4409]
[1761037175227,20.5631127,3876.1,3876.0,0.4409]
[1761037176248,13.3753477,3876.1,3876.0,0.4409]
[1761037176537,21.6096777,3876.1,3876.0,0.4409]
[1761037177541,21.4245247,3876.1,3876.0,0.002]
[1761037178436,20.5505737,3876.1,3876.0,0.002]
[1761037179668,19.7789357,3876.1,3876.0,0.002]
[1761037180667,20.3868887,3876.1,3876.0,0.002]
[1761037181647,21.7157097,3876.1,3876.0,0.002]
[1761037182743,25.08688252,3876.1,3876.0,0.002]
[1761037183064,23.87188252,3876.1,3876.0,0.002]
[1761037183258,23.12269852,3876.1,3876.0,0.002]
[1761037183459,21.32269852,3876.1,3876.0,0.002]
[1761037183658,22.65104852,3876.1,3876.0,0.002]
[1761037183970,22.11374852,3876.1,3876.0,0.002]
[1761037184348,20.01429952,3876.1,3876.0,0.002]
[1761037184549,20.01429952,3876.1,3876.0,0.4409]
[1761037184944,20.01429952,3876.1,3876.0,0.002]
[1761037185378,20.45079952,3876.1,3876.0,0.002]
[1761037185562,21.05680049,3876.1,3876.0,0.002]
[1761037185760,15.13983749,3876.1,3876.0,0.002]
[1761037185957,38.85783349,3876.1,3876.0,0.002]
[1761037186882,38.80611049,3876.1,3876.0,0.002]
[1761037187973,41.13858249,3876.1,3876.0,0.002]
[1761037188499,31.78586749,3876.1,3876.0,0.002]
[1761037188782,30.75356149,3876.1,3876.0,0.002]
[1761037189790,28.62704249,3876.1,3876.0,0.002]
[1761037189994,28.17775052,3876.1,3876.0,0.002]
[1761037190199,27.74125052,3876.1,3876.0,0.002]
[1761037190686,25.95865952,3876.1,3876.0,0.002]
[1761037190865,27.63370152,3876.1,3876.0,0.002]
[1761037191780,25.48134452,3876.1,3876.0,0.002]
[1761037191963,14.53383652,3876.1,3876.0,0.002]
[1761037192163,28.57964052,3876.1,3876.0,0.002]
[1761037192595,23.12317652,3876.1,3876.0,0.002]
[1761037192803,14.08546552,3876.1,3876.0,0.002]
[1761037193082,14.09433652,3876.1,3876.0,0.4409]
[1761037193395,16.48880852,3876.1,3876.0,0.002]
[1761037193555,16.48880852,3876.1,3876.0,0.4409]
[1761037193983,17.90231452,3876.1,3876.0,0.4409]
[1761037194202,16.30231452,3876.1,3876.0,0.4409]
[1761037194964,16.33233252,3876.1,3876.0,0.4409]
[1761037195365,16.14519352,3876.1,3876.0,0.4409]
[1761037195966,14.09433652,3876.1,3876.0,0.4409]
[1761037196169,16.80073752,3876.1,3876.0,0.4409]
[1761037196596,16.21314652,3876.1,3876.0,0.4409]
[1761037196897,16.18212752,3876.1,3876.0,0.4409]
[1761037198304,16.36112752,3876.1,3876.0,0.4409]
[1761037199002,16.24112752,3876.1,3876.0,0.4409]
[1761037199193,16.33712752,3876.1,3876.0,0.4409]
[1761037200007,4.30791279,3876.1,3876.0,0.002]
[1761037200302,2.70871279,3876.1,3876.0,0.4409]
[1761037200506,10.98571579,3876.1,3876.0,0.002]
[1761037202387,10.98571579,3876.1,3876.0,0.4737]
[1761037202787,10.98571579,3876.1,3876.0,0.002]
[1761037203110,11.44401579,3876.1,3876.0,0.002]
[1761037203417,22.37554579,3876.1,3876.0,0.002]
[1761037204288,27.48340679,3876.1,3876.0,0.002]
[1761037204512,24.66115147,3876.1,3876.0,0.002]
[1761037204679,25.77403244,3876.1,3876.0,0.002]
[1761037205115,28.46604436,3876.0,3875.9,0.002]
[1761037205279,25.38469236,3876.0,3875.9,0.002]
[1761037205907,24.64556536,3876.0,3875.9,0.002]
[1761037206407,26.66783836,3876.0,3875.9,0.002]
[1761037206581,22.40407038,3875.3,3875.2,0.002]
[1761037206776,32.18949411,3875.3,3875.2,0.002]
[1761037206981,32.64779411,3875.3,3875.2,0.002]
[1761037207214,31.11722011,3875.3,3875.2,0.002]
[1761037207707,28.18574111,3875.3,3875.2,0.002]
[1761037208411,33.93053311,3875.3,3875.2,0.002]
[1761037208629,30.92399411,3875.3,3875.2,0.002]
[1761037208776,12.23537368,3875.3,3875.2,0.002]
[1761037209126,17.66005441,3875.3,3875.2,0.002]
[1761037209332,17.66005441,3875.3,3875.2,0.4737]
[1761037209333,4.30844538,3875.3,3875.2,0.4737]
[1761037209713,1.728,3875.3,3875.2,0.4737]
[1761037209915,5.029,3875.3,3875.2,0.4737]
[1761037210702,7.60944538,3875.3,3875.2,0.4737]
[1761037211236,3.301,3875.3,3875.2,0.4737]
[1761037211623,5.88144538,3875.3,3875.2,0.4737]
[1761037212232,5.88144538,3875.3,3875.2,0.002]
[1761037212613,5.88144538,3875.3,3875.2,0.4737]
[1761037215441,5.88144538,3875.3,3875.2,0.002]
[1761037215647,5.88144538,3875.3,3875.2,0.4737]
[1761037216747,3.301,3875.3,3875.2,0.4737]
[1761037217171,5.88144538,3875.3,3875.2,0.4737]
[1761037218035,5.029,3875.3,3875.2,0.4737]
[1761037218471,1.728,3875.3,3875.2,0.4737]
[1761037218656,1.728,3875.3,3875.2,0.81135926]
[1761037219378,1.728,3875.3,3875.2,0.4737]
[1761037222170,2.58040735,3875.4,3875.2,0.4737]
[1761037222171,1.728,3875.4,3875.2,0.4737]
[1761037223871,2.58032749,3875.5,3875.2,0.4737]
[1761037223872,1.728,3875.5,3875.3,0.02580445]
[1761037224293,1.728,3875.5,3875.4,0.4432]
[1761037228380,1.728,3875.6,3875.4,0.572]
[1761037228595,1.728,3875.6,3875.5,0.3154499]
[1761037228795,1.728,3875.6,3875.5,0.7586499]
[1761037229869,1.728,3875.8,3875.5,0.4432]
[1761037230074,1.728,3875.8,3875.6,0.4432]
[1761037232103,4.30817906,3875.7,3875.6,0.4432]
[1761037232411,1.728,3875.8,3875.6,0.473]
[1761037233298,3.299,3875.9,3875.6,0.473]
[1761037233299,1.728,3875.9,3875.6,0.473]
[1761037233501,1.729,3876.0,3875.6,0.79121572]
[1761037233902,1.729,3876.0,3875.7,0.473]
[1761037234272,2.58004592,3875.9,3875.7,0.473]
[1761037234709,4.30844538,3875.3,3875.2,0.002]
[1761037234910,10.79286911,3875.3,3875.2,0.002]
[1761037235406,11.26606911,3875.3,3875.2,0.002]
[1761037235788,20.69764011,3875.3,3875.2,0.002]
[1761037236299,21.03010851,3875.3,3875.2,0.002]
[1761037236610,4.30851197,3875.2,3875.1,0.002]
[1761037236823,23.69325537,3875.2,3875.1,0.002]
[1761037237107,23.17235037,3875.2,3875.1,0.002]
[1761037237679,29.94905137,3875.2,3875.1,0.002]
[1761037238072,20.03749537,3875.2,3875.1,0.002]
[1761037238278,17.40098997,3875.2,3875.1,0.002]
[1761037238814,18.97271297,3875.2,3875.1,0.002]
[1761037239329,18.97142341,3875.2,3875.1,0.002]
[1761037239615,13.57907541,3875.2,3875.1,0.002]
[1761037239821,13.15731641,3875.2,3875.1,0.002]
[1761037240391,8.07842241,3875.2,3875.1,0.002]
[1761037240615,10.14828241,3875.2,3875.1,0.002]
[1761037240793,10.09139641,3875.2,3875.1,0.002]
[1761037241823,24.18990941,3875.2,3875.1,0.002]
[1761037242011,23.34017449,3875.2,3875.1,0.002]
[1761037242212,22.25524249,3875.2,3875.1,0.002]
[1761037242829,21.75840041,3875.2,3875.1,0.002]
[1761037243192,21.55260241,3875.2,3875.1,0.002]
[1761037243599,13.89015241,3875.2,3875.1,0.002]
[1761037243803,13.20651141,3875.2,3875.1,0.002]
[1761037244093,16.58724541,3875.2,3875.1,0.002]
[1761037244293,14.54771941,3875.2,3875.1,0.002]
[1761037244489,8.07842241,3875.2,3875.1,0.002]
[1761037244722,16.57498358,3875.2,3875.1,0.002]
[1761037244919,15.87049658,3875.2,3875.1,0.002]
[1761037245122,10.07428658,3875.2,3875.1,0.002]
[1761037245422,0.1288,3875.5,3875.1,0.6664]
[1761037245610,3.297,3875.6,3875.2,0.02580511]
[1761037245921,0.001,3875.8,3875.3,3.39358113]
[1761037246109,5.76806417,3875.8,3875.3,0.46895999]
[1761037246308,5.76806417,3875.8,3875.3,0.94195999]
[1761037246309,1.728,3875.7,3875.3,0.94195999]
[1761037246790,1.728,3875.7,3875.4,0.473]
[1761037247128,4.30818408,3875.7,3875.4,0.473]
[1761037248042,4.30818408,3875.7,3875.3,0.1288]
[1761037248190,2.58034311,3875.5,3875.3,0.1288]
[1761037248390,2.58034311,3875.5,3875.1,0.6664]
[1761037248391,2.58051197,3875.2,3875.1,0.002]
[1761037248607,10.07557614,3875.2,3875.1,0.002]
[1761037248801,25.20242714,3875.2,3875.1,0.002]
[1761037249002,13.37257614,3875.2,3875.1,0.002]
[1761037249403,15.54838814,3875.2,3875.1,0.002]
[1761037249622,16.02158814,3875.2,3875.1,0.002]
[1761037249830,26.84511214,3875.2,3875.1,0.002]
[1761037250018,22.20951314,3875.2,3875.1,0.002]
[1761037250220,20.32161714,3875.2,3875.1,0.002]
[1761037250600,18.00095614,3875.2,3875.1,0.002]
[1761037250924,23.11782314,3875.2,3875.1,0.002]
[1761037252011,25.77580214,3875.2,3875.1,0.002]
[1761037252212,22.76564814,3875.2,3875.1,0.002]
[1761037252424,21.39232614,3875.2,3875.1,0.002]
[1761037253036,22.27083714,3875.2,3875.1,0.002]
[1761037254097,25.96618814,3875.2,3875.1,0.002]
[1761037254937,17.50210714,3875.2,3875.1,0.002]
[1761037255143,16.80666114,3875.2,3875.1,0.002]
[1761037256034,21.36965914,3875.2,3875.1,0.002]
[1761037256360,21.09489733,3875.2,3875.1,0.002]
[1761037257149,14.25059233,3875.2,3875.1,0.002]
[1761037257452,27.71531933,3875.2,3875.1,0.002]
[1761037257762,19.36296333,3875.2,3875.1,0.002]
[1761037258076,18.95814714,3875.2,3875.1,0.002]
[1761037258354,17.45114714,3875.2,3875.1,0.002]
[1761037258655,13.37257614,3875.2,3875.1,0.002]
[1761037258860,13.84577614,3875.2,3875.1,0.002]
[1761037259356,17.15271114,3875.2,3875.1,0.002]
[1761037259656,13.37257614,3875.2,3875.1,0.002]
[1761037260036,15.76830214,3875.2,3875.1,0.002]
[1761037260362,16.24150214,3875.2,3875.1,0.002]
[1761037260573,21.47451014,3875.2,3875.1,0.002]
[1761037260728,20.28836814,3875.2,3875.1,0.002]
[1761037260929,20.08036814,3875.2,3875.1,0.002]
[1761037261139,16.61239114,3875.2,3875.1,0.002]
[1761037261638,18.13956514,3875.2,3875.1,0.002]
[1761037262272,13.37257614,3875.2,3875.1,0.002]
[1761037262497,13.80017614,3875.2,3875.1,0.002]
[1761037262814,16.64453114,3875.2,3875.1,0.002]
[1761037263296,23.43274214,3875.2,3875.1,0.002]
[1761037264162,18.00945714,3875.2,3875.1,0.002]
[1761037264360,20.14737114,3875.2,3875.1,0.002]
[1761037264785,20.57497114,3875.2,3875.1,0.002]
[1761037265380,21.01790814,3875.2,3875.1,0.002]
[1761037266264,38.73907331,3875.2,3875.1,0.002]
[1761037266459,37.74095031,3875.2,3875.1,0.002]
[1761037266695,37.74095031,3875.2,3874.7,0.002]
[1761037266696,13.02494336,3874.8,3874.7,0.002]
[1761037266993,22.08800753,3874.8,3874.7,0.002]
[1761037267173,21.84187753,3874.8,3874.7,0.002]
[1761037267369,25.44639822,3874.8,3874.7,0.002]
[1761037267886,24.07548239,3874.8,3874.7,0.002]
[1761037268399,26.37288839,3874.8,3874.7,0.002]
[1761037269206,26.77775864,3874.8,3874.7,0.002]
[1761037269404,20.07488764,3874.8,3874.7,0.002]
[1761037269615,39.47166239,3874.8,3874.7,0.002]
[1761037269821,32.58097819,3874.5,3874.4,0.002]
[1761037269979,41.05453236,3874.5,3874.4,0.002]
[1761037270174,41.48213236,3874.5,3874.4,0.002]
[1761037270481,13.79964236,3874.5,3874.4,0.002]
[1761037270694,33.35200236,3874.5,3874.4,0.002]
[1761037271008,24.52636236,3874.5,3874.4,0.002]
[1761037271510,28.83755636,3874.5,3874.4,0.002]
[1761037272509,13.79964236,3874.5,3874.4,0.002]
[1761037272683,31.90614146,3874.5,3874.4,0.002]
[1761037273009,29.97981346,3874.5,3874.4,0.002]
[1761037273482,14.20455246,3874.5,3874.4,0.002]
[1761037273685,34.84025446,3874.5,3874.4,0.002]
[1761037274006,27.34240446,3874.5,3874.4,0.002]
[1761037274826,4.3090448,3874.4,3874.3,1e-08]
[1761037275121,4.3090448,3874.4,3873.6,0.002]
[1761037275122,31.81168121,3873.7,3873.6,0.002]
[1761037275276,39.50006155,3873.7,3873.6,0.002]
[1761037275675,43.30912955,3873.7,3873.6,0.002]
[1761037276379,42.48000055,3873.7,3873.6,0.002]
[1761037276579,42.38603655,3873.7,3873.6,0.002]
[1761037277005,32.93021255,3873.7,3873.6,0.002]
[1761037277338,12.44403038,3873.7,3873.6,0.002]
[1761037277517,15.74003038,3873.7,3873.6,0.002]
[1761037277836,16.46394538,3873.7,3873.6,0.002]
[1761037278218,13.37257538,3873.7,3873.6,0.002]
[1761037278418,18.09694538,3873.7,3873.6,0.002]
[1761037278618,17.33694538,3873.7,3873.6,0.002]
[1761037279018,13.37257538,3873.7,3873.6,0.002]
[1761037279333,8.34857538,3873.7,3873.6,0.4608]
[1761037279532,11.64457538,3873.7,3873.6,0.4608]
[1761037279841,13.37257538,3873.7,3873.6,0.4608]
[1761037280135,7.60551121,3873.7,3873.6,0.002]
[1761037280313,7.73431121,3873.7,3873.6,0.4608]
[1761037280644,1.8568,3873.7,3873.6,0.4608]
[1761037281017,1.728,3873.7,3873.6,0.4608]
[1761037281524,2.58138135,3873.9,3873.6,0.4608]
[1761037281707,1.728,3873.8,3873.6,0.4608]
[1761037282033,4.30944935,3873.8,3873.6,0.002]
[1761037282238,4.30944935,3873.8,3873.7,0.4588]
[1761037282411,1.728,3873.8,3873.7,0.4588]
[1761037283754,4.30944457,3873.8,3873.7,0.4588]
[1761037283921,10.52038321,3873.7,3873.6,0.002]
[1761037284119,9.60791144,3873.7,3873.6,0.002]
[1761037284440,9.94037984,3873.7,3873.6,0.002]
[1761037285032,21.94872284,3873.7,3873.6,0.002]
[1761037285433,12.32538838,3873.7,3873.6,0.002]
[1761037285657,13.37157538,3873.7,3873.6,0.002]
[1761037285847,15.48134138,3873.7,3873.6,0.002]
[1761037286055,15.70879538,3873.7,3873.6,0.002]
[1761037286678,13.37157538,3873.7,3873.6,0.002]
[1761037286833,7.60451121,3873.7,3873.6,0.4608]
[1761037287229,13.37157538,3873.7,3873.6,0.4608]
[1761037287663,13.37157538,3873.7,3873.6,0.002]
[1761037288379,13.37157538,3873.7,3873.6,0.4608]
[1761037288836,13.37157538,3873.7,3873.6,0.002]
[1761037289861,13.37157538,3873.7,3873.6,0.4608]
[1761037291166,13.37157538,3873.7,3873.6,0.002]
[1761037291469,22.88662438,3873.7,3873.6,0.002]
[1761037291774,28.16057455,3873.7,3873.6,0.002]
[1761037292018,20.24280138,3873.7,3873.6,0.002]
[1761037292170,26.45416555,3873.7,3873.6,0.002]
[1761037292372,19.58293955,3873.7,3873.6,0.002]
[1761037292573,27.36942138,3873.7,3873.6,0.002]
[1761037292790,26.82133655,3873.7,3873.6,0.002]
[1761037293278,27.49250418,3873.7,3873.6,0.002]
[1761037293481,50.25410718,3873.7,3873.6,0.002]
[1761037294120,41.12523205,3873.7,3873.6,0.002]
[1761037294277,35.54153805,3873.7,3873.6,0.002]
[1761037294601,33.79342505,3873.7,3873.6,0.002]
[1761037295305,33.62913742,3873.7,3873.6,0.002]
[1761037295506,40.45520642,3873.7,3873.6,0.002]
[1761037295721,39.53488242,3873.7,3873.6,0.002]
[1761037296019,36.01838942,3873.7,3873.6,0.002]
[1761037296477,48.05406942,3873.7,3873.6,0.002]
[1761037296678,46.39370042,3873.7,3873.6,0.002]
[1761037296878,36.74741842,3873.7,3873.6,0.002]
[1761037297078,36.16929442,3873.7,3873.6,0.002]
[1761037297608,48.39822042,3873.7,3873.6,0.002]
[1761037297795,48.73691965,3873.7,3873.6,0.002]
[1761037298003,37.38977765,3873.7,3873.6,0.002]
[1761037298514,50.83355965,3873.7,3873.6,0.002]
[1761037298809,25.24872681,3873.3,3873.2,0.002]
[1761037299109,30.33261398,3873.3,3873.2,0.002]
[1761037299314,29.20937398,3873.3,3873.2,0.002]
[1761037299522,28.79088998,3873.3,3873.2,0.002]
[1761037299729,25.22207598,3873.3,3873.2,0.002]
[1761037299926,24.18790098,3873.3,3873.2,0.002]
[1761037300608,24.72670798,3873.3,3873.2,0.002]
[1761037301193,22.77443998,3873.3,3873.2,0.002]
[1761037301398,18.34458798,3873.3,3873.2,0.002]
[1761037301631,26.46556398,3873.3,3873.2,0.002]
[1761037301792,26.90986398,3873.3,3873.2,0.002]
[1761037302626,30.1067598,3872.9,3872.8,0.002]
[1761037302922,33.6162598,3872.9,3872.8,0.002]
[1761037303132,34.0605598,3872.9,3872.8,0.002]
[1761037303429,2.58309843,3871.4,3871.3,0.4303]
[1761037303636,8.3501626,3871.4,3871.3,0.4303]
[1761037303933,2.58324507,3871.1,3871.0,0.1668]
[1761037304138,2.58324507,3871.1,3871.0,0.5971]
[1761037304139,0.1288,3871.1,3871.0,0.5971]
[1761037304303,2.71204507,3871.1,3871.0,0.5971]
[1761037305325,2.71204507,3871.1,3871.0,0.1668]
[1761037305527,2.71204507,3871.1,3871.0,0.5971]
[1761037305891,2.71204507,3871.1,3871.0,0.1668]
[1761037306931,0.1288,3871.1,3871.0,0.5971]
[1761037307632,1.728,3871.2,3871.0,0.5971]
[1761037307800,1.728,3871.2,3871.1,0.4303]
[1761037308202,3.295,3871.6,3871.1,0.45613245]
[1761037308412,3.4238,3871.6,3871.1,3.01350914]
[1761037308615,1.728,3871.5,3871.1,0.4303]
[1761037308834,1.728,3871.5,3871.2,0.4303]
[1761037309039,1.728,3871.5,3871.3,0.36401316]
[1761037309400,1.728,3871.5,3871.4,0.4303]
[1761037309601,3.4238,3871.6,3871.4,0.4303]
[1761037309602,0.1288,3871.6,3871.4,0.4303]
[1761037312496,0.1288,3871.6,3871.5,0.4303]
[1761037314608,1.728,3871.7,3871.5,0.4303]
[1761037315014,1.728,3871.7,3871.6,0.02582911]
[1761037315407,1.728,3871.7,3871.6,0.45612911]
[1761037315912,1.728,3871.7,3871.6,0.4303]
[1761037316108,2.5830173,3871.5,3871.2,0.1288]
[1761037316408,2.5830173,3871.5,3871.3,0.4303]
[1761037316409,1.728,3871.5,3871.3,0.4303]
[1761037316609,4.3110141,3871.5,3871.3,0.4303]
[1761037316904,4.31099309,3871.5,3871.2,0.1288]
[1761037317108,4.31099309,3871.5,3871.2,0.5591]
[1761037317538,4.31099309,3871.5,3871.3,0.4303]
[1761037317952,1.728,3871.5,3871.3,0.4303]
[1761037318656,1.728,3871.5,3871.2,0.1288]
[1761037318948,1.728,3871.5,3871.3,0.4303]
[1761037320317,2.58293903,3871.6,3871.3,0.4303]
[1761037320712,2.58288932,3871.7,3871.3,0.4303]
[1761037321124,3.295,3871.8,3871.4,0.02583044]
[1761037321445,3.295,3871.8,3871.3,0.4303]
[1761037321645,2.58285126,3871.7,3871.4,0.472]
[1761037321844,2.58292167,3871.6,3871.4,0.472]
[1761037322270,3.295,3871.8,3871.2,0.1288]
[1761037322468,2.58299078,3871.5,3871.2,0.1288]
[1761037323876,2.58305085,3871.4,3871.2,0.1288]
[1761037324063,2.58311161,3871.3,3871.2,0.1288]
[1761037324537,2.58324507,3871.1,3871.0,0.002]
[1761037325055,2.71204507,3871.1,3871.0,0.002]
[1761037326840,0.1288,3871.1,3871.0,0.002]
[1761037327045,0.1288,3871.1,3871.0,0.474]
[1761037327246,6.00589631,3871.4,3871.0,0.474]
[1761037327446,3.4228,3871.4,3871.1,0.1668]
[1761037327886,3.4228,3871.4,3871.1,0.6388]
[1761037328090,1.728,3871.6,3871.1,0.1668]
[1761037328301,2.58291145,3871.6,3871.1,0.6388]
[1761037328592,2.58298684,3871.5,3871.2,0.472]
[1761037328958,5.1508,3871.7,3871.2,0.472]
[1761037328959,2.58293115,3871.6,3871.2,0.472]
[1761037329162,2.58297862,3871.5,3871.1,0.1668]
[1761037329651,2.58297862,3871.5,3871.1,0.6388]
[1761037329974,2.58305204,3871.4,3871.1,0.1668]
[1761037330151,2.5829933,3871.5,3871.1,0.1668]
[1761037330357,5.1508,3871.7,3871.2,0.472]
[1761037330675,2.58301356,3871.5,3871.2,0.472]
[1761037331772,5.022,3871.7,3871.2,0.472]
[1761037331971,7.60488994,3871.7,3871.2,0.472]
[1761037332278,2.58292557,3871.6,3871.2,0.472]
[1761037332478,7.60487102,3871.7,3871.2,0.472]
[1761037332774,2.58271409,3871.9,3871.2,0.79440989]
[1761037332775,2.58275122,3871.9,3871.2,0.79440989]
[1761037332974,1.728,3871.8,3871.2,0.472]
[1761037333177,1.728,3871.8,3871.3,3.05510646]
[1761037333783,1.728,3871.8,3871.4,0.472]
[1761037334277,2.58295627,3871.6,3871.1,0.1668]
[1761037334649,2.174,3871.8,3871.1,0.6388]
[1761037334849,2.58301882,3871.5,3871.1,0.6388]
[1761037335351,1.728,3871.8,3871.2,0.472]
[1761037335548,2.58292085,3871.6,3871.2,0.472]
[1761037339088,1.728,3871.8,3871.3,0.4349]
[1761037339300,3.293,3872.0,3871.5,2.58291876]
[1761037339447,0.40515561,3872.3,3872.2,0.1914]
[1761037339652,5.87616765,3872.8,3872.2,0.1914]
[1761037339949,2.58231345,3872.5,3871.4,0.50688]
[1761037340284,2.1687,3872.7,3871.9,2.58270805]
[1761037340445,5.87531568,3872.5,3871.8,2.58275103]
[1761037340644,5.87531568,3872.5,3871.8,3.14280605]
[1761037340889,3.293,3872.5,3871.9,0.4349]
[1761037341096,1.728,3872.4,3872.0,2.58264246]
[1761037341281,1.728,3872.7,3872.1,2.58257675]
[1761037341584,1.728,3872.4,3871.9,0.4349]
[1761037341788,2.58240148,3872.4,3871.9,0.1288]
[1761037341991,4.31040148,3872.4,3871.9,0.1288]
[1761037342865,0.4407,3872.3,3871.9,0.1288]
[1761037343186,4.31040148,3872.4,3871.9,0.1288]
[1761037343491,1.728,3872.4,3871.9,0.1288]
[1761037343700,1.728,3872.4,3871.9,2.7115053]
[1761037343993,1.728,3872.4,3871.9,0.1288]
[1761037344623,4.31039525,3872.4,3871.9,0.1288]
[1761037344785,3.02315781,3872.3,3871.9,0.1288]
[1761037344984,1.728,3872.4,3871.9,0.1288]
[1761037345185,1.728,3872.4,3871.9,0.5637]
[1761037345373,0.4407,3872.3,3871.9,0.1288]
[1761037345685,1.728,3871.9,3871.5,0.1288]
[1761037345892,4.43939442,3872.1,3871.5,0.1288]
[1761037346557,1.8568,3872.1,3871.5,2.71176411]
[1761037346887,1.8568,3872.1,3871.5,3.14666411]
[1761037347067,1.8568,3872.1,3871.5,2.71176411]
[1761037347268,1.8568,3872.1,3871.9,0.002]
[1761037347269,0.4407,3872.0,3871.9,0.002]
[1761037347666,4.75139502,3872.0,3871.9,0.002]
[1761037348493,1.728,3872.0,3871.9,0.002]
[1761037348871,4.75134462,3872.0,3871.9,0.002]
[1761037355983,11.25052488,3872.0,3871.9,0.002]
[1761037356932,25.01407488,3872.0,3871.9,0.002]
[1761037357429,21.42271088,3872.0,3871.9,0.002]
[1761037357788,11.25052488,3872.0,3871.9,0.002]
[1761037358004,21.43620788,3872.0,3871.9,0.002]
[1761037358790,31.57112088,3872.0,3871.9,0.002]
[1761037358997,24.82685388,3872.0,3871.9,0.002]
[1761037359202,13.84775588,3872.0,3871.9,0.002]
[1761037359927,20.32805688,3872.0,3871.9,0.002]
[1761037361011,20.79697188,3872.0,3871.9,0.002]
[1761037362035,22.84597688,3872.0,3871.9,0.002]
[1761037362333,22.49604988,3872.0,3871.9,0.002]
[1761037362639,13.83424888,3872.0,3871.9,0.002]
[1761037362991,22.22236388,3872.0,3871.9,0.002]
[1761037364008,26.70791688,3872.0,3871.9,0.002]
[1761037364624,25.11593288,3872.0,3871.9,0.002]
[1761037364946,21.29613988,3872.0,3871.9,0.002]
[1761037365130,26.13208888,3872.0,3871.9,0.002]
[1761037366129,26.17212888,3872.0,3871.9,0.002]
[1761037366324,22.26733588,3872.0,3871.9,0.002]
[1761037366608,18.53405888,3872.0,3871.9,0.002]
[1761037366942,17.8110425,3872.0,3871.9,0.002]
[1761037367183,24.8483955,3872.0,3871.9,0.002]
[1761037367643,23.0648665,3872.0,3871.9,0.002]
[1761037367941,19.5677055,3872.0,3871.9,0.002]
[1761037368143,26.2942155,3872.0,3871.9,0.002]
[1761037368558,26.69939236,3872.0,3871.9,0.002]
[1761037368852,20.74156536,3872.0,3871.9,0.002]
[1761037369337,23.29616436,3872.0,3871.9,0.002]
[1761037369751,22.05616436,3872.0,3871.9,0.002]
[1761037370450,29.10309036,3872.0,3871.9,0.002]
[1761037371358,27.22124536,3872.0,3871.9,0.002]
[1761037371561,27.56957087,3872.0,3871.9,0.002]
[1761037372064,27.90203927,3872.0,3871.9,0.002]
[1761037372262,11.63647927,3872.0,3871.9,0.002]
[1761037372425,36.57486627,3872.0,3871.9,0.002]
[1761037373160,36.20128027,3872.0,3871.9,0.002]
[1761037373326,36.29128027,3872.0,3871.9,0.002]
[1761037374455,11.63647927,3872.0,3871.9,0.002]
[1761037374689,36.35401827,3872.0,3871.9,0.002]
[1761037375330,37.18124527,3872.0,3871.9,0.002]
[1761037375540,36.88274527,3872.0,3871.9,0.002]
[1761037376446,41.63647927,3872.0,3871.9,0.002]
[1761037377557,40.91387927,3872.0,3871.9,0.002]
[1761037378471,11.63647927,3872.0,3871.9,0.002]
[1761037378784,41.63647927,3872.0,3871.9,0.002]
[1761037378967,42.04163248,3872.0,3871.9,0.002]
[1761037382075,42.04163248,3872.0,3871.1,0.002]